bitfinex/quotes_ETHUSD_20240824
["timestamp","ask_amount","ask_price","bid_price","bid_amount"]
[1724497193348,3.56428823,2772.2,2771.5,0.592056]
[1724497193699,2.3023,2772.2,2771.6,3.60791]
[1724497193949,2.3023,2772.2,2771.7,0.4199966]
[1724497194153,2.3023,2772.2,2771.8,3.60768]
[1724497194452,2.3023,2772.4,2771.8,3.60768]
[1724497194651,2.3023,2772.4,2772.0,3.60748]
[1724497194796,5.90909,2772.6,2772.0,3.60748]
[1724497195001,2.3023,2772.6,2772.0,3.60748]
[1724497195348,2.3023,2772.6,2772.0,3.60742]
[1724497195649,5.90866,2772.9,2772.2,3.60717]
[1724497195794,5.90866,2772.9,2772.3,3.60705]
[1724497196216,5.90866,2772.9,2772.4,3.60697]
[1724497196632,5.90842,2773.1,2772.4,7.21387]
[1724497196845,10.466038,2773.1,2772.4,3.6069]
[1724497197001,3.60624,2773.0,2772.4,3.6069]
[1724497197197,6.859848,2773.1,2772.4,3.60685]
[1724497197507,3.60586,2773.3,2772.6,5.91898]
[1724497197508,3.60596,2773.2,2772.6,5.91898]
[1724497197739,3.60586,2773.3,2772.7,3.60653]
[1724497198071,3.60586,2773.3,2772.7,3.67865227]
[1724497198378,3.60586,2773.3,2772.7,3.6065]
[1724497198720,2.3023,2773.4,2772.7,3.6065]
[1724497198956,2.3023,2773.4,2772.7,7.213]
[1724497198957,5.90799,2773.4,2772.7,7.213]
[1724497199440,5.90799,2773.4,2772.8,3.60642]
[1724497199926,2.3023,2773.4,2772.8,3.60642]
[1724497200126,3.02639797,2774.0,2772.9,3.60621]
[1724497200127,5.90771,2773.7,2772.9,3.60621]
[1724497200356,3.60545,2773.6,2773.0,3.60612]
[1724497200573,5.90771,2773.7,2773.1,3.60604]
[1724497200881,5.90771,2773.7,2772.9,3.60621]
[1724497200882,5.90771,2773.7,2772.9,3.60632]
[1724497201166,5.90771,2773.7,2773.1,3.60597]
[1724497201167,5.90768,2773.7,2773.1,3.60597]
[1724497201933,3.60556,2773.5,2772.9,3.60632]
[1724497202191,3.60583,2773.3,2772.7,3.60652]
[1724497202390,3.253577,2773.7,2772.6,7.44]
[1724497202391,3.60628,2773.0,2772.6,7.44]
[1724497202893,5.90901,2772.7,2772.2,7.44]
[1724497203036,5.90901,2772.7,2772.0,6.280452]
[1724497203237,5.90901,2772.7,2772.0,0.360742]
[1724497203238,5.90896,2772.7,2772.0,0.360742]
[1724497203481,3.60699,2772.4,2772.0,0.360742]
[1724497203782,5.90891,2772.7,2772.0,3.968132]
[1724497204751,3.60686,2772.5,2771.9,11.04755]
[1724497204926,3.60686,2772.5,2772.0,3.60747]
[1724497205546,3.60686,2772.5,2771.9,7.44]
[1724497206172,3.60713,2772.3,2771.9,7.44]
[1724497206570,7.21381,2772.5,2771.9,11.04762]
[1724497206897,7.21379,2772.5,2771.9,12.43191566]
[1724497207058,3.60699,2772.4,2771.9,12.43191566]
[1724497207507,3.60699,2772.4,2771.9,8.82429566]
[1724497207805,3.60699,2772.4,2771.8,3.60773]
[1724497208346,3.60699,2772.4,2771.8,7.21542]
[1724497208752,3.60699,2772.4,2771.9,3.6076]
[1724497209785,3.60686,2772.5,2772.0,3.60749]
[1724497210822,7.21379,2772.5,2772.0,3.60749]
[1724497210999,3.60686,2772.5,2772.0,3.60749]
[1724497212472,3.60686,2772.5,2772.0,4.329008]
[1724497212800,3.60686,2772.5,2772.0,3.60749]
[1724497213001,7.21379,2772.5,2771.8,3.60764]
[1724497213197,3.60686,2772.5,2771.9,3.6076]
[1724497213587,3.60686,2772.5,2772.0,3.60748]
[1724497214399,3.60702,2772.4,2771.8,3.60764]
[1724497214708,3.60702,2772.4,2771.8,7.21531]
[1724497215270,3.60702,2772.4,2771.9,3.60759]
[1724497215661,3.60686,2772.5,2771.9,3.60759]
[1724497216073,3.60686,2772.5,2772.0,3.60749]
[1724497219267,7.2138,2772.5,2772.0,3.60749]
[1724497219581,3.60686,2772.5,2772.0,3.60749]
[1724497220183,5.90897,2772.7,2772.0,3.60743]
[1724497220384,3.60679,2772.6,2772.0,3.60742]
[1724497220789,3.60679,2772.6,2772.0,7.21485]
[1724497220985,3.60679,2772.6,2772.0,7.21484]
[1724497221230,3.60679,2772.6,2772.0,3.60742]
[1724497221367,3.60679,2772.6,2772.0,7.21484]
[1724497221717,3.60679,2772.6,2772.0,3.60742]
[1724497221916,3.60679,2772.6,2772.0,7.21485]
[1724497222213,3.60679,2772.6,2772.0,3.60742]
[1724497222418,3.60687,2772.5,2772.0,3.60742]
[1724497223822,7.21384,2772.5,2772.0,3.60742]
[1724497224131,7.21384,2772.5,2771.9,3.60763]
[1724497224132,4.558484,2772.5,2771.9,3.60763]
[1724497224276,2.3233,2772.4,2771.9,3.60763]
[1724497225374,5.93029,2772.4,2771.9,3.60763]
[1724497226461,2.3233,2772.4,2772.0,3.60748]
[1724497228781,5.93039,2772.4,2771.8,3.60764]
[1724497228979,3.60713,2772.3,2771.8,7.21533]
[1724497229181,3.60713,2772.3,2771.8,3.60764]
[1724497229584,3.60713,2772.3,2771.8,7.21533]
[1724497231089,2.3233,2772.4,2771.9,3.60762]
[1724497231484,2.3233,2772.4,2772.0,3.6075]
[1724497231642,3.60688,2772.5,2772.0,3.6075]
[1724497232535,7.21383,2772.5,2772.0,3.6075]
[1724497232839,3.60688,2772.5,2772.0,3.6075]
[1724497233628,5.11407357,2772.5,2772.0,3.6075]
[1724497234040,8.72101357,2772.5,2772.0,3.6075]
[1724497234511,8.72101357,2772.5,2771.9,2.3225]
[1724497234512,3.60702,2772.4,2771.9,2.3225]
[1724497234693,3.60702,2772.4,2771.9,5.93009]
[1724497234889,3.60702,2772.4,2771.9,6.883863]
[1724497236508,5.11421357,2772.4,2771.9,6.883863]
[1724497236851,2.7682554,2772.5,2771.9,6.883863]
[1724497237047,1.50719357,2772.5,2772.1,3.60734]
[1724497237935,5.11405357,2772.5,2772.0,3.6075]
[1724497238453,5.11405357,2772.5,2772.1,3.60728]
[1724497238454,1.50719357,2772.5,2772.1,3.60728]
[1724497238672,1.50719357,2772.5,2772.2,3.60723]
[1724497239183,1.50719357,2772.5,2772.1,3.60736]
[1724497240238,1.50719357,2772.5,2772.2,7.21439]
[1724497240438,1.50719357,2772.8,2772.5,3.60677]
[1724497240838,1.50719357,2772.9,2772.5,3.60677]
[1724497241053,1.50719357,2772.9,2772.6,3.60669]
[1724497241295,1.50719357,2773.0,2772.6,3.60669]
[1724497241771,5.11339357,2773.0,2772.6,3.60669]
[1724497242083,5.11339357,2773.0,2772.5,0.95351]
[1724497242284,1.50719357,2772.9,2772.5,0.95351]
[1724497242739,1.50719357,2772.9,2772.5,4.56034]
[1724497242956,3.81629357,2773.1,2772.6,4.423314]
[1724497243257,5.49293116,2773.2,2772.7,3.60651]
[1724497243258,5.11322357,2773.2,2772.7,3.60651]
[1724497244670,5.11322357,2773.2,2772.8,3.60646]
[1724497244671,1.50719357,2773.2,2772.8,3.60646]
[1724497244840,1.50719357,2773.3,2772.8,3.60639]
[1724497245035,1.50719357,2773.3,2772.9,3.6062]
[1724497245238,1.50719357,2773.4,2773.0,4.327449]
[1724497246051,5.11288357,2773.4,2773.0,0.721259]
[1724497246293,1.50719357,2773.4,2773.0,4.327449]
[1724497247781,5.11282357,2773.5,2773.0,4.327379]
[1724497247981,1.50719357,2773.5,2773.0,4.327379]
[1724497248164,1.50719357,2773.5,2773.0,3.60612]
[1724497248371,1.50719357,2773.5,2773.0,7.21223]
[1724497248571,1.50719357,2773.5,2773.0,3.60611]
[1724497248777,1.50719357,2773.5,2773.0,7.21223]
[1724497248973,3.39406926,2773.7,2773.3,3.6058]
[1724497249176,2.26425083,2773.9,2773.4,3.67777513]
[1724497249177,1.50719357,2773.9,2773.4,3.67777513]
[1724497249376,1.50719357,2773.9,2773.6,3.60537]
[1724497249688,2.3589,2774.0,2773.6,3.6054]
[1724497250687,2.3589,2774.0,2773.6,4.326496]
[1724497251129,3.60479,2774.1,2773.6,4.326496]
[1724497251331,3.60479,2774.1,2773.6,4.326436]
[1724497251619,5.96355,2774.2,2773.6,4.326406]
[1724497252409,3.60479,2774.1,2773.6,4.326406]
[1724497252605,3.60479,2774.1,2773.6,3.7361566]
[1724497253419,7.20966,2774.1,2773.6,0.1308466]
[1724497253622,3.60479,2774.1,2773.6,0.1308466]
[1724497253828,3.60479,2774.1,2773.5,5.87663]
[1724497254081,3.60492,2774.0,2773.5,5.87663]
[1724497254594,3.60492,2774.0,2773.5,3.60553]
[1724497256142,2.3589,2774.2,2773.4,7.44]
[1724497256143,3.60536,2773.7,2773.4,7.44]
[1724497256308,3.60555,2773.5,2773.4,7.44]
[1724497256509,3.60531,2773.7,2773.4,7.44]
[1724497256821,3.60549,2773.6,2773.4,7.44]
[1724497257140,7.21069,2773.7,2773.4,7.44]
[1724497257346,3.60531,2773.7,2773.4,7.44]
[1724497257491,2.4742,2773.8,2773.4,7.44]
[1724497257868,2.4742,2773.8,2773.4,8.184]
[1724497258202,2.4742,2773.8,2773.4,0.744]
[1724497258404,2.4742,2773.8,2773.3,6.07213]
[1724497260039,2.4742,2773.8,2773.3,9.67787]
[1724497260362,2.4742,2773.8,2773.3,6.07213]
[1724497260555,2.4742,2773.8,2773.3,9.67787]
[1724497260761,7.21025,2773.9,2773.3,6.07213]
[1724497261111,7.21022,2773.9,2773.3,6.07213]
[1724497261581,3.6051,2773.9,2773.3,6.07213]
[1724497261760,7.21023,2773.9,2773.3,6.07213]
[1724497261965,7.21021,2773.9,2773.3,6.07213]
[1724497262462,8.46995572,2773.9,2773.3,6.07213]
[1724497262828,3.60516,2773.8,2773.3,6.07213]
[1724497263027,3.60494,2774.0,2773.5,3.60548]
[1724497263425,3.60494,2774.0,2773.5,7.21095]
[1724497263629,4.86468572,2774.0,2773.5,3.60547]
[1724497263829,4.86495572,2773.8,2773.3,7.784002]
[1724497264136,7.25835572,2773.8,2773.3,5.317602]
[1724497264442,7.25835572,2773.8,2773.2,3.60591]
[1724497264443,3.60531,2773.7,2773.2,3.60591]
[1724497265417,3.60531,2773.7,2773.2,7.21178]
[1724497265773,3.60531,2773.7,2773.3,3.6058]
[1724497266364,3.65314572,2773.8,2773.3,3.6058]
[1724497267378,3.65314572,2773.8,2773.4,3.60563]
[1724497267825,1.25974572,2773.8,2773.4,3.60563]
[1724497268228,2.3934,2774.0,2773.5,3.60545]
[1724497268535,3.65314572,2774.0,2773.5,3.60545]
[1724497268731,7.25806572,2774.0,2773.5,7.21092]
[1724497269083,7.25806572,2774.0,2773.5,3.60545]
[1724497270970,7.25806572,2774.0,2773.3,3.60572]
[1724497270971,3.60519,2773.8,2773.3,3.60572]
[1724497271326,3.60519,2773.8,2773.3,5.31234]
[1724497271942,4.86493572,2773.8,2773.3,5.31234]
[1724497272739,1.25974572,2773.8,2773.4,3.60567]
[1724497273691,4.86491572,2773.8,2773.3,5.31234]
[1724497274948,3.60517,2773.8,2773.3,3.60578]
[1724497275998,5.99837,2774.0,2773.4,3.60563]
[1724497275999,7.25811572,2774.0,2773.4,3.60563]
[1724497276977,7.25811572,2774.0,2773.5,2.4145]
[1724497277178,7.25811572,2774.0,2773.5,3.377091]
[1724497277472,10.86313572,2774.0,2773.5,3.377091]
[1724497277714,5.99837,2774.0,2773.5,3.377091]
[1724497277922,3.60503,2773.9,2773.5,3.377091]
[1724497278815,5.99837,2774.0,2773.5,3.377091]
[1724497278977,5.99837,2774.0,2773.6,0.6982761]
[1724497279202,5.99837,2774.0,2773.5,3.377091]
[1724497280032,5.11189357,2774.2,2773.5,6.982541]
[1724497280177,5.48786819,2774.4,2773.6,1.25974572]
[1724497280178,5.11161357,2774.4,2773.6,1.25974572]
[1724497280382,3.60465,2774.2,2773.6,1.25974572]
[1724497280624,3.60442,2774.4,2773.8,6.01964]
[1724497280825,3.60442,2774.4,2773.8,2.4145]
[1724497282421,4.86416572,2774.4,2773.9,3.60502]
[1724497283292,4.86416572,2774.4,2773.8,2.4145]
[1724497283525,4.86416572,2774.4,2773.8,6.01962]
[1724497283734,4.86416572,2774.4,2773.9,1.04490307]
[1724497284525,3.74114572,2774.0,2773.6,7.44]
[1724497284829,1.25974572,2773.7,2773.6,7.44]
[1724497286730,1.50719357,2773.8,2773.6,7.44]
[1724497286897,1.50719357,2773.9,2773.6,7.44]
[1724497287092,1.50719357,2774.0,2773.6,7.44]
[1724497287709,1.50719357,2773.9,2773.6,7.44]
[1724497288128,1.50719357,2773.9,2773.4,3.60558]
[1724497288432,1.50719357,2773.9,2773.4,7.21117]
[1724497288737,1.50719357,2773.9,2773.4,3.60558]
[1724497288882,1.50719357,2773.9,2773.4,7.21118]
[1724497289578,1.50719357,2773.9,2773.5,3.60554]
[1724497289781,1.50719357,2774.0,2773.6,3.60534]
[1724497290282,1.88744965,2774.1,2773.7,2.3295]
[1724497290283,1.50719357,2774.1,2773.7,2.3295]
[1724497290624,1.88744965,2774.2,2773.7,2.3295]
[1724497290625,1.50719357,2774.2,2773.7,2.3295]
[1724497291324,1.50719357,2774.2,2773.8,3.60511]
[1724497295213,1.50719357,2774.2,2773.8,4.00187025]
[1724497295914,1.50719357,2774.2,2773.8,4.00183025]
[1724497296224,1.50719357,2774.3,2773.9,3.60501]
[1724497296421,5.49228105,2774.5,2773.9,3.60501]
[1724497296422,1.50719357,2774.4,2773.9,3.60501]
[1724497296626,1.50719357,2774.4,2773.9,4.63105948]
[1724497296831,1.50719357,2774.4,2774.1,2.3295]
[1724497297050,1.50719357,2774.4,2774.1,2.40158828]
[1724497297312,3.60406,2774.7,2774.2,3.60454]
[1724497297313,1.50719357,2774.6,2774.2,3.60454]
[1724497297512,1.50719357,2774.7,2774.2,4.197944]
[1724497297737,1.50719357,2774.7,2774.2,7.802514]
[1724497297944,1.50719357,2774.7,2774.3,3.6045]
[1724497299480,1.50719357,2774.8,2774.4,2.3295]
[1724497299784,1.50719357,2775.0,2774.6,3.6041]
[1724497300081,1.50719357,2775.0,2774.7,2.3295]
[1724497300285,1.50719357,2775.0,2774.7,6.887242]
[1724497300592,1.88646723,2775.2,2774.7,6.887242]
[1724497300593,1.50719357,2775.2,2774.7,6.887242]
[1724497300733,1.50719357,2775.3,2774.7,10.491162]
[1724497301080,1.50719357,2775.3,2774.4,2.3295]
[1724497301081,3.98859357,2775.2,2774.4,2.3295]
[1724497301281,1.50719357,2775.0,2774.4,2.3295]
[1724497301488,1.50719357,2775.1,2774.4,2.3295]
[1724497301685,3.6038,2774.9,2774.4,2.3295]
[1724497301883,5.11086357,2775.0,2774.4,2.3295]
[1724497303179,5.11086357,2775.0,2774.4,5.93386]
[1724497303363,5.11068357,2775.1,2774.4,6.9470294]
[1724497303565,1.50719357,2775.0,2774.4,6.9470294]
[1724497303764,5.11068357,2775.1,2774.4,6.9470294]
[1724497303966,5.11068357,2775.1,2774.5,3.60415]
[1724497303967,1.50719357,2775.0,2774.5,3.60415]
[1724497304783,1.50719357,2775.0,2774.6,3.6041]
[1724497304953,1.50719357,2775.1,2774.6,3.6041]
[1724497307683,10.61560266,2775.2,2774.6,3.6041]
[1724497308384,7.59193357,2775.2,2774.6,4.38439685]
[1724497308584,5.11053357,2775.2,2774.6,4.38439685]
[1724497309885,5.11053357,2775.2,2774.6,3.6041]
[1724497310446,1.50719357,2775.1,2774.6,3.6041]
[1724497310776,5.11053357,2775.2,2774.6,3.6041]
[1724497311344,8.71394357,2775.2,2774.6,3.6041]
[1724497311588,5.11053357,2775.2,2774.6,3.6041]
[1724497312339,3.60334,2775.2,2774.6,3.6041]
[1724497313403,3.60334,2775.2,2774.7,2.3773]
[1724497314408,8.71350357,2775.4,2774.8,0.59814]
[1724497314607,1.258579,2775.0,2774.8,0.59814]
[1724497314808,3.60315,2775.4,2774.8,4.20198]
[1724497315106,1.258579,2775.2,2774.8,4.27404865]
[1724497315275,1.258579,2775.2,2774.9,0.66513486]
[1724497316260,1.258579,2775.2,2775.0,2.44936579]
[1724497316576,1.258579,2775.4,2775.0,6.05288579]
[1724497317165,1.258579,2775.4,2775.1,3.60346]
[1724497318096,1.258579,2775.4,2775.1,3.60339]
[1724497318300,1.258579,2775.4,2775.2,0.598069]
[1724497319364,1.258579,2775.6,2775.2,0.598069]
[1724497319713,1.258579,2775.6,2774.3,18.1445893]
[1724497319860,1.258579,2775.6,2775.0,3.60351]
[1724497320306,3.740879,2775.6,2775.0,3.60351]
[1724497320505,3.740879,2775.6,2774.9,3.60373]
[1724497320506,1.258579,2775.4,2774.9,3.60373]
[1724497320716,1.258579,2775.4,2775.1,3.60347]
[1724497321207,1.258579,2775.6,2775.1,3.6034]
[1724497321361,1.258579,2775.6,2775.2,3.60333]
[1724497322036,1.258579,2775.7,2775.2,3.60333]
[1724497322630,1.258579,2775.7,2775.2,5.98063]
[1724497322835,1.258579,2775.7,2775.2,2.3773]
[1724497323157,1.258579,2775.7,2775.3,3.6032]
[1724497323460,1.258579,2775.7,2775.4,0.07205118]
[1724497325419,1.258579,2775.9,2775.4,4.2803183]
[1724497325634,1.258579,2775.9,2775.4,0.60526712]
[1724497326224,1.258579,2775.9,2775.2,5.98054]
[1724497326417,1.258579,2775.9,2775.3,4.1532]
[1724497327451,1.258579,2775.7,2775.3,4.1532]
[1724497332324,1.258579,2775.5,2775.1,7.80034]
[1724497332501,1.258579,2775.3,2775.1,7.44]
[1724497332707,1.258579,2775.3,2775.0,3.60351]
[1724497333010,1.258579,2775.3,2774.9,7.20737]
[1724497333851,1.258579,2775.6,2775.2,0.590521]
[1724497334320,1.258579,2775.6,2775.2,4.193851]
[1724497335251,1.258579,2775.6,2775.3,3.60315]
[1724497335808,1.258579,2775.8,2775.4,3.60305]
[1724497336243,1.258579,2775.8,2775.4,3.60302]
[1724497336556,1.258579,2775.8,2775.5,0.360302]
[1724497337747,1.258579,2775.6,2775.2,4.193781]
[1724497337955,1.258579,2775.6,2775.3,0.55]
[1724497339212,1.258579,2775.4,2775.3,0.55]
[1724497339561,1.258579,2775.4,2774.7,7.44]
[1724497339562,2.3519,2775.3,2774.7,7.44]
[1724497339717,1.258579,2775.1,2774.7,7.44]
[1724497339912,1.258579,2775.1,2774.8,3.60385]
[1724497340108,1.258579,2775.1,2774.7,7.44]
[1724497340353,1.258579,2775.1,2774.7,11.04398]
[1724497340558,2.3519,2775.3,2774.7,11.04398]
[1724497340941,2.3519,2775.3,2774.8,0.55]
[1724497342144,2.3519,2775.3,2774.7,7.44]
[1724497342356,6.35625035,2775.3,2774.7,7.44]
[1724497342578,2.3519,2775.3,2774.7,7.44]
[1724497342732,2.3519,2775.3,2774.7,11.04398]
[1724497346074,2.3519,2775.3,2774.7,7.44]
[1724497346896,2.413,2775.2,2774.7,7.44]
[1724497347876,2.413,2775.2,2774.7,11.04395]
[1724497349757,2.413,2775.2,2774.7,14.64783]
[1724497349927,2.413,2775.2,2774.7,14.64782]
[1724497350125,2.413,2775.2,2774.7,11.04391]
[1724497350429,2.413,2775.2,2774.8,3.60386]
[1724497351325,2.413,2775.2,2774.8,4.324637]
[1724497352374,2.413,2775.2,2774.8,3.60386]
[1724497352877,2.413,2775.2,2774.4,22.9]
[1724497352878,2.413,2775.2,2774.6,3.60403]
[1724497354289,2.413,2775.2,2774.7,3.60396]
[1724497357442,2.413,2775.2,2774.8,3.60383]
[1724497357643,2.413,2775.2,2774.9,3.60372]
[1724497360485,3.67138752,2775.2,2774.9,3.60372]
[1724497364401,3.67138752,2775.2,2774.7,3.60387]
[1724497364556,1.25838752,2775.0,2774.7,3.60387]
[1724497364759,1.25838752,2775.0,2774.7,3.99808599]
[1724497365003,1.25838752,2775.0,2774.8,3.60383]
[1724497365772,3.67138752,2775.2,2774.9,3.60371]
[1724497366174,3.67138752,2775.2,2774.8,3.60385]
[1724497366391,2.3207,2774.9,2774.7,3.6039]
[1724497366599,2.3207,2774.9,2774.7,4.32471]
[1724497367123,2.3207,2774.9,2774.5,3.60417]
[1724497367277,2.3207,2774.7,2774.4,7.44]
[1724497367872,2.3207,2774.7,2774.5,3.60424]
[1724497368181,2.3207,2774.9,2774.7,3.60397]
[1724497369324,2.3207,2774.9,2774.5,3.60417]
[1724497369613,2.3207,2774.9,2774.5,4.708587]
[1724497370112,1.25838752,2774.8,2774.4,11.04437]
[1724497370271,2.3207,2774.7,2774.4,11.04437]
[1724497370977,2.3207,2774.7,2774.4,7.44]
[1724497371378,2.3207,2774.7,2774.3,3.60447]
[1724497372918,1.25838752,2774.6,2774.1,3.0]
[1724497373216,2.3207,2774.1,2773.7,7.44]
[1724497373512,1.25838752,2774.0,2773.7,7.44]
[1724497373680,1.25838752,2774.0,2773.6,3.60533]
[1724497374629,1.25838752,2774.0,2773.4,3.6056]
[1724497374913,5.92549,2774.1,2773.3,19.9]
[1724497374914,1.25838752,2773.8,2773.3,19.9]
[1724497375120,1.25838752,2773.8,2773.3,23.50576]
[1724497375481,1.25838752,2773.8,2773.3,23.50572]
[1724497376013,1.25838752,2773.8,2773.4,3.60568]
[1724497376186,1.25838752,2773.8,2773.3,23.50572]
[1724497376517,2.3207,2773.9,2773.3,19.9]
[1724497377319,2.3207,2773.9,2773.3,7.44]
[1724497377785,2.3207,2773.8,2773.1,6.60598]
[1724497378124,3.60504,2773.9,2773.2,3.55]
[1724497378125,2.3207,2773.7,2773.2,3.55]
[1724497380122,3.0233691,2774.0,2772.8,12.46]
[1724497380123,5.92619,2773.6,2772.8,12.46]
[1724497380317,2.3207,2773.5,2772.8,16.06636]
[1724497381477,2.3207,2773.5,2772.9,3.55]
[1724497381707,2.3207,2773.5,2772.9,7.15633]
[1724497381888,2.3207,2773.5,2772.9,3.55]
[1724497382113,2.3207,2773.5,2773.1,3.60598]
[1724497383723,2.3207,2773.5,2772.9,3.55]
[1724497383879,2.3752,2773.4,2772.9,0.55]
[1724497386240,2.3752,2773.4,2772.8,3.0]
[1724497387024,2.3752,2773.4,2772.9,3.60622]
[1724497387793,2.3752,2773.4,2772.9,7.21247]
[1724497388030,2.3752,2773.4,2772.8,3.0]
[1724497388933,2.3752,2773.4,2772.8,6.60637]
[1724497389528,2.3752,2773.4,2772.8,3.0]
[1724497389760,2.3752,2773.2,2772.5,12.46]
[1724497389978,2.3752,2772.9,2772.1,11.04725]
[1724497390173,2.3752,2772.9,2772.3,3.60711]
[1724497390968,2.3752,2772.9,2772.3,7.21406]
[1724497391130,2.3752,2772.9,2772.3,3.60702]
[1724497391337,2.3752,2772.9,2772.3,7.21406]
[1724497391554,2.3752,2772.9,2772.3,3.60702]
[1724497391859,2.3752,2772.9,2772.3,3.60706]
[1724497392031,2.3752,2772.9,2772.5,3.60676]
[1724497394218,2.3752,2772.9,2772.4,0.55]
[1724497395167,2.3752,2772.9,2772.4,4.15695]
[1724497395667,2.3752,2772.9,2772.6,3.60671]
[1724497395871,2.3752,2772.9,2772.6,0.776353]
[1724497397822,2.3752,2773.4,2772.7,4.15652]
[1724497398026,2.3752,2773.7,2773.4,3.60558]
[1724497398383,3.60462,2774.3,2773.4,3.60558]
[1724497398384,2.3752,2774.0,2773.5,3.60547]
[1724497398593,2.3752,2774.0,2773.4,3.60558]
[1724497398594,2.3752,2774.0,2773.6,3.6054]
[1724497398795,2.3752,2774.0,2773.7,4.15519]
[1724497398957,2.3752,2774.5,2774.0,3.60489]
[1724497399163,2.3752,2774.5,2774.0,3.60483]
[1724497399472,2.3752,2774.5,2774.1,3.60477]
[1724497399672,2.3752,2774.5,2774.1,3.67685447]
[1724497399860,2.3752,2774.5,2774.1,3.60477]
[1724497400179,2.3752,2774.5,2773.9,3.60493]
[1724497400387,2.3752,2774.5,2774.0,0.55]
[1724497400739,2.3752,2774.5,2774.0,4.15489]
[1724497404886,2.3752,2774.5,2774.1,3.60476]
[1724497405165,2.3752,2774.5,2774.2,3.67664328]
[1724497405369,2.3926,2774.8,2774.4,3.60429]
[1724497405681,2.3926,2774.8,2774.3,4.22651286]
[1724497405682,2.3926,2774.8,2774.5,3.67629639]
[1724497405890,2.3926,2775.2,2774.6,0.55]
[1724497406090,2.3926,2775.2,2774.6,4.15403]
[1724497406270,2.3926,2775.2,2774.7,3.67598965]
[1724497406578,2.3926,2775.2,2774.7,7.20782]
[1724497406778,2.3926,2775.2,2774.8,0.55]
[1724497407310,2.3926,2775.2,2774.8,4.15383]
[1724497408112,2.3926,2775.2,2774.8,0.55]
[1724497408414,2.3926,2775.2,2774.8,1.0429718]
[1724497408715,2.3926,2775.2,2774.8,4.6468218]
[1724497409013,2.3926,2775.2,2774.4,7.44]
[1724497409014,5.99595,2775.2,2774.4,7.44]
[1724497409217,5.99595,2775.2,2774.5,3.0]
[1724497409511,9.59941,2775.2,2774.5,3.0]
[1724497409712,9.59939,2775.2,2774.5,3.0]
[1724497410025,6.955889,2775.2,2774.5,3.0]
[1724497410171,5.99608,2775.1,2774.5,3.0]
[1724497410872,2.3926,2775.1,2774.5,3.0]
[1724497411881,2.3926,2775.1,2774.6,3.6041]
[1724497412849,2.3926,2775.1,2774.6,7.20815]
[1724497413015,2.3926,2775.1,2774.6,3.60405]
[1724497415518,2.3926,2775.1,2774.6,7.2081]
[1724497415722,2.3926,2775.1,2774.6,3.60405]
[1724497417674,2.3926,2775.1,2774.6,3.60404]
[1724497417877,2.3926,2775.1,2774.7,3.60398]
[1724497426786,2.3926,2775.1,2774.8,3.60385]
[1724497426967,2.3926,2775.1,2774.8,0.720783]
[1724497427141,2.3926,2775.1,2774.9,3.60373]
[1724497427977,2.2907,2775.5,2774.7,5.9323]
[1724497428180,2.2907,2775.5,2774.8,0.55]
[1724497428494,2.2907,2775.5,2774.9,3.60373]
[1724497428700,2.2907,2775.5,2774.8,0.55]
[1724497428701,2.880053,2775.5,2774.8,0.55]
[1724497428898,2.2907,2775.4,2774.7,3.60398]
[1724497429220,3.60311,2775.4,2774.7,3.60398]
[1724497429425,2.2907,2775.3,2774.7,3.60398]
[1724497433921,2.2907,2775.3,2774.7,3.60392]
[1724497433922,2.9390163,2775.3,2774.7,3.60392]
[1724497434123,2.3555,2775.2,2774.5,6.60417]
[1724497434334,2.3555,2775.2,2774.6,0.55]
[1724497434498,1.25857124,2775.0,2774.6,0.55]
[1724497435035,2.3555,2774.9,2774.6,0.55]
[1724497435189,2.3555,2774.9,2774.6,4.1541]
[1724497436048,2.3555,2774.9,2774.5,3.0]
[1724497436721,2.3555,2774.9,2774.5,6.60416]
[1724497437890,2.3555,2774.9,2774.6,3.60411]
[1724497438750,2.3555,2774.9,2774.5,3.0]
[1724497438946,2.3555,2774.9,2774.6,0.55]
[1724497439388,2.3555,2774.9,2774.7,3.60397]
[1724497439934,2.3555,2774.9,2774.7,7.20783]
[1724497440092,1.25857124,2775.2,2774.7,8.283613]
[1724497440291,3.61407124,2775.2,2774.7,4.679693]
[1724497440633,3.61407124,2775.2,2774.7,8.283603]
[1724497440941,3.61407124,2775.2,2774.8,3.60385]
[1724497443154,2.3555,2775.2,2774.8,3.60377]
[1724497443391,2.3555,2775.2,2774.9,0.40370139]
[1724497444389,2.3555,2775.2,2774.7,3.60397]
[1724497444604,2.3018,2775.7,2775.1,3.60334]
[1724497444805,2.3018,2775.7,2775.3,3.60319]
[1724497445160,2.3018,2775.7,2775.3,3.60312]
[1724497447899,2.3018,2775.7,2775.1,7.20675]
[1724497448091,2.3018,2775.7,2775.2,0.720675]
[1724497448608,2.3018,2775.7,2775.2,4.323995]
[1724497451487,2.3018,2775.7,2775.3,3.60319]
[1724497451817,1.25857124,2775.8,2775.3,3.60319]
[1724497452515,1.25857124,2775.8,2775.2,0.720675]
[1724497452703,1.25857124,2775.8,2775.3,0.75880939]
[1724497456308,2.3018,2775.9,2775.3,0.75880939]
[1724497456482,1.25857124,2775.7,2775.3,0.75880939]
[1724497457639,2.3018,2775.9,2775.3,0.75880939]
[1724497457851,1.25857124,2775.7,2775.3,0.75880939]
[1724497458047,1.25857124,2775.7,2775.4,0.43621094]
[1724497460468,1.25857124,2775.7,2775.1,7.20673]
[1724497460624,1.25857124,2775.7,2774.9,9.9152]
[1724497460625,1.25857124,2775.5,2774.9,11.04365]